fUSD/lending_fUSD_20250809
["ID","MTS","AMOUNT","RATE_DAILY","PERIOD"]
[378166910,1754759432384,-1000.0,0.00018087,2]
[378166911,1754759432394,-1000.0,0.00018087,2]
[378166912,1754759432403,-1000.0,0.00018087,2]
[378166913,1754759432413,-514.0,0.00018136,2]
[378166914,1754759432422,-151.0,0.0001836,2]
[378166915,1754759432432,-250.0,0.00018527,2]
[378166916,1754759432442,-150.0,0.0001888,2]
[378166917,1754759432451,-256.81,0.00019178,2]
[378166918,1754759432461,-1000.0,0.00019209,2]
[378166919,1754759432470,-178.31,0.00019318,2]
[378166920,1754759432480,-236.8,0.00019355,2]
[378166921,1754759432489,-162.28,0.00019372,2]
[378166922,1754759432500,-570.36,0.00019445,2]
[378166923,1754759432509,-403.58,0.00019476,2]
[378166924,1754759432518,-600.0,0.0001948,2]
[378166925,1754759432528,-600.0,0.0001948,2]
[378166926,1754759432538,-571.33,0.0001948,2]
[378166927,1754759432547,-273.49,0.00019497,2]
[378166928,1754759432557,-600.0,0.0001957,2]
[378166929,1754759432566,-600.0,0.0001957,2]
[378166930,1754759432580,-600.0,0.0001957,2]
[378166931,1754759432590,-600.0,0.0001957,2]
[378166933,1754759432600,-600.0,0.0001957,2]
[378166935,1754759432609,-600.0,0.0001957,2]
[378166937,1754759432619,-600.0,0.0001957,2]
[378166939,1754759432628,-600.0,0.0001957,2]
[378166941,1754759432638,-349.36740987,0.0001957,2]
[378166943,1754759432647,-500.0,0.0001957,2]
[378166945,1754759432659,-273.9954192,0.0001957,2]
[378166947,1754759432669,-416.6760965,0.0001957,2]
[378166949,1754759432679,-500.0,0.0001957,2]
[378166951,1754759432689,-500.0,0.0001957,2]
[378166953,1754759432699,-500.0,0.0001957,2]
[378166955,1754759432708,-500.0,0.0001957,2]
[378166957,1754759432718,-500.0,0.0001957,2]
[378166959,1754759432727,-298.62792179,0.0001957,2]
[378166961,1754759432737,-11924.32680401,0.00019582,2]
[378166966,1754759432766,-557.08440707,0.00019582,2]
[378166971,1754759432798,-541.29134377,0.00019582,2]
[378166975,1754759432838,-18214.31744515,0.00019582,2]
[378166977,1754759432848,-170.0,0.00019604,7]
[378166979,1754759432858,-500.0,0.00019625,2]
[378166981,1754759432867,-500.0,0.0001968,2]
[378166983,1754759432877,-193.0,0.00019732,2]
[378166985,1754759432887,-500.0,0.00019735,2]
[378166987,1754759432896,-5600.34951485,0.00019785,2]
[378166989,1754759432908,-7859.44457375,0.00019785,2]
[378166991,1754759432919,-10440.2059114,0.00019785,2]
[378166993,1754759432931,-500.0,0.0001979,2]
[378166995,1754759432940,-1680.0,0.00019829,2]
[378166997,1754759432950,-500.0,0.00019845,2]
[378166999,1754759432959,-500.0,0.000199,2]
[378167001,1754759432969,-500.0,0.00019916,2]
[378167003,1754759432979,-219.3011451,0.00019916,2]
[378167005,1754759432989,-500.0,0.00019916,2]
[378167006,1754759432998,-151.0,0.00019916,2]
[378167008,1754759433008,-500.0,0.00019916,2]
[378167010,1754759433017,-500.0,0.00019916,2]
[378167012,1754759433027,-326.73867833,0.00019916,2]
[378167014,1754759433036,-250.0,0.00019916,2]
[378167016,1754759433046,-500.0,0.00019916,2]
[378167018,1754759433056,-250.0,0.00019916,2]
[378167020,1754759433065,-250.0,0.00019916,2]
[378167022,1754759433075,-600.0,0.00019916,2]
[378167024,1754759433084,-500.0,0.00019916,2]
[378167026,1754759433094,-250.0,0.00019916,2]
[378167027,1754759433103,-500.0,0.00019916,2]
[378167028,1754759433112,-154.8624278,0.00019916,2]
[378167029,1754759433122,-500.0,0.00019916,2]
[378167030,1754759433132,-250.0,0.00019916,2]
[378167031,1754759433142,-160.0,0.00019916,2]
[378167032,1754759433151,-500.0,0.00019916,2]
[378167033,1754759433160,-250.0,0.00019916,2]
[378167034,1754759433170,-167.64016421,0.00019916,2]
[378167035,1754759433180,-500.0,0.00019916,2]
[378167036,1754759433190,-250.0,0.00019916,2]
[378167037,1754759433199,-500.0,0.00019916,2]
[378167038,1754759433208,-250.0,0.00019916,2]
[378167039,1754759433218,-500.0,0.00019916,2]
[378167040,1754759433228,-250.0,0.00019916,2]
[378167041,1754759433237,-500.0,0.00019916,2]
[378167042,1754759433247,-250.0,0.00019916,2]
[378167043,1754759433258,-500.0,0.00019916,2]
[378167044,1754759433268,-250.0,0.00019916,2]
[378167045,1754759433277,-500.0,0.00019916,2]
[378167046,1754759433288,-250.0,0.00019916,2]
[378167047,1754759433298,-151.0,0.00019916,2]
[378167048,1754759433307,-500.0,0.00019916,2]
[378167049,1754759433317,-250.0,0.00019916,2]
[378167050,1754759433326,-500.0,0.00019916,2]
[378167051,1754759433337,-500.0,0.00019916,2]
[378167052,1754759433347,-250.0,0.00019916,2]
[378167053,1754759433356,-500.0,0.00019916,2]
[378167054,1754759433366,-500.0,0.00019916,2]
[378167055,1754759433375,-250.0,0.00019916,2]
[378167056,1754759433385,-359.76179104,0.00019916,2]
[378167057,1754759433394,-500.0,0.00019916,2]
[378167058,1754759433404,-250.0,0.00019916,2]
[378167059,1754759433413,-500.0,0.00019916,2]
[378167060,1754759433423,-250.0,0.00019916,2]
[378167061,1754759433433,-500.0,0.00019916,2]
[378167062,1754759433443,-250.0,0.00019916,2]
[378167063,1754759433452,-500.0,0.00019916,2]
[378167064,1754759433462,-250.0,0.00019916,2]
[378167065,1754759433472,-500.0,0.00019916,2]
[378167066,1754759433481,-500.0,0.00019916,2]
[378167067,1754759433491,-500.0,0.00019916,2]
[378167068,1754759433500,-500.0,0.00019916,2]
[378167069,1754759433510,-151.0,0.00019916,2]
[378167070,1754759433519,-500.0,0.00019916,2]
[378167071,1754759433529,-151.0,0.00019916,2]
[378167072,1754759433538,-500.0,0.00019916,2]
[378167073,1754759433548,-151.0,0.00019916,2]
[378167074,1754759433557,-157.55548253,0.00019916,2]
[378167075,1754759433567,-500.0,0.00019916,2]
[378167076,1754759433580,-500.0,0.00019916,2]
[378167077,1754759433590,-250.0,0.00019916,2]
[378167078,1754759433599,-500.0,0.00019916,2]
[378167079,1754759433609,-500.0,0.00019916,2]
[378167080,1754759433618,-250.0,0.00019916,2]
[378167081,1754759433629,-363.26492725,0.00019916,2]
[378167082,1754759433638,-209.40437685,0.00019916,2]
[378167083,1754759433648,-4662.51281194,0.00019916,2]
[378167084,1754759433659,-239.84119403,0.00019916,2]
[378167085,1754759433669,-151.0,0.00019916,2]
[378167086,1754759433678,-151.0,0.00019916,2]
[378167087,1754759433688,-200.0,0.00019916,2]
[378167088,1754759433698,-151.0,0.00019916,2]
[378167089,1754759433708,-300.0,0.00019916,2]
[378167090,1754759433717,-317.76167784,0.00019916,2]
[378167091,1754759433727,-500.0,0.00019918,2]
[378167092,1754759433736,-500.0,0.00019955,2]
[378167093,1754759433746,-4835.02578598,0.00019971,2]
[378167094,1754759433756,-506.63647082,0.0002,2]
[378167095,1754759433765,-500.0,0.0002,2]
[378167096,1754759433774,-508.40118696,0.0002,2]
[378167097,1754759433784,-500.0,0.0002,2]
[378167098,1754759433793,-500.0,0.0002,2]
[378167099,1754759433802,-5013.92174006,0.00020026,2]
[378167100,1754759433812,-305.11,0.00020035,2]
[378167101,1754759433822,-303.69,0.00020062,2]
[378167102,1754759433832,-301.47,0.00020062,2]
[378167103,1754759433842,-150.0,0.0002007,2]
[378167104,1754759433853,-5199.43684444,0.00020081,2]
[378167105,1754759433863,-5391.81600769,0.00020136,2]
[378167106,1754759433874,-305.82,0.00020154,2]
[378167107,1754759433884,-4743.52118957,0.00020191,2]
[378167108,1754759433893,-537.24,0.00020192,2]
[378167109,1754759433903,-151.11,0.00020261,2]
[378167110,1754759433912,-824.86777869,0.0002037,2]
[378167111,1754759433922,-820.95722968,0.00020397,2]
[378167112,1754759433931,-150.0,0.00020451,2]
[378167113,1754759433940,-2310.22,0.00020459,10]
[378167114,1754759433950,-600.0,0.00020464,2]
[378167115,1754759433959,-151.0,0.00020464,2]
[378167116,1754759433969,-151.0,0.00020464,2]
[378167117,1754759433979,-172.12,0.00020527,2]
[378167118,1754759433988,-500.0,0.00020548,2]
[378167119,1754759433998,-500.0,0.00020548,2]
[378167120,1754759434007,-256.81,0.00020654,2]
[378167121,1754759434017,-261.24742817,0.00020656,2]
[378167122,1754759434027,-500.0,0.00020658,2]
[378167123,1754759434036,-2500.0,0.0002068,2]
[378167124,1754759434046,-842.58837005,0.00020688,2]
[378167125,1754759434056,-327.66,0.000207,2]
[378167126,1754759434065,-842.58837004,0.00020712,2]
[378167127,1754759434075,-168.0,0.00020712,2]
[378167128,1754759434085,-298.51,0.00020721,2]
[378167129,1754759434095,-842.58837004,0.00020735,2]
[378167130,1754759434105,-820.95722968,0.00020744,2]
[378167131,1754759434115,-2284.0,0.00020748,2]
[378167132,1754759434124,-169.67675257,0.00020753,2]
[378167133,1754759434134,-842.58837004,0.00020759,2]
[378167134,1754759434143,-178.31,0.00020766,2]
[378167135,1754759434153,-1000.0,0.00020775,2]
[378167136,1754759434163,-21177.70950454,0.0002078,2]
[378167137,1754759434197,-14175.86305818,0.0002078,2]
[378167138,1754759434208,-3794.41871993,0.0002078,2]
[378167139,1754759434236,-5808.01337974,0.0002078,2]
[378167140,1754759434248,-24338.89530827,0.0002078,2]
[378167141,1754759434259,-1910.08620262,0.0002078,2]
[378167146,1754759438097,-888.0,0.00019709,3]
[378167147,1754759438107,-649.27578019,0.00020364,2]
[378167148,1754759438116,-649.27578012,0.00020392,2]
[378167149,1754759438125,-888.0,0.00020416,3]
[378167150,1754759438135,-31.43290925,0.0002078,2]
[378167151,1754759438145,-2695.72962899,0.0002078,2]
[378167152,1754759438156,-1435.57870101,0.0002078,2]
[378167153,1754759438165,-842.58837004,0.00020782,2]
[378167154,1754759438175,-169.67675253,0.00020782,2]
[378167155,1754759438184,-6911.3942,0.00020788,2]
[378167156,1754759438194,-177.057,0.0002079,2]
[378167157,1754759438203,-3302.456,0.00020797,2]
[378167158,1754759438213,-842.58837004,0.00020806,2]
[378167159,1754759438222,-150.0,0.0002081,2]
[378167160,1754759438231,-169.67675253,0.00020812,2]
[378167161,1754759438241,-842.58837004,0.00020829,2]
[378167162,1754759438252,-200.0,0.00020832,2]
[378167163,1754759438268,-842.58837004,0.00020853,2]
[378167164,1754759438282,-500.0,0.00020873,2]
[378167165,1754759438292,-500.0,0.00020873,2]
[378167166,1754759438301,-842.58837004,0.00020876,2]
[378167167,1754759438311,-949.85,0.00020887,2]
[378167168,1754759438320,-87484.74446762,0.00020887,2]
[378167169,1754759438332,-9616.06621539,0.00020887,2]
[378167170,1754759438343,-23754.03512613,0.00020887,2]
[378167171,1754759438354,-2080.0,0.00020887,2]
[378167172,1754759438376,-7051.21322555,0.00020887,2]
[378167173,1754759438388,-259.80992006,0.00020887,2]
[378167174,1754759438400,-4416.10861065,0.00020887,2]
[378167175,1754759438410,-10497.24056745,0.00020887,2]
[378167176,1754759438420,-1000.0,0.00020888,2]
[378167177,1754759438430,-2948.7563,0.00020888,2]
[378167178,1754759438441,-21584.25622404,0.00020888,2]
[378167179,1754759438462,-3190.06795616,0.00020888,2]
[378167180,1754759438474,-474.76656177,0.00020888,2]
[378167181,1754759438485,-1233.00416372,0.00020888,2]
[378167182,1754759438506,-169.67675253,0.00020841,2]
[378167183,1754759438516,-338.90804003,0.00020888,2]
[378167184,1754759438535,-669.67447729,0.00020888,2]
[378167185,1754759438559,-888.0,0.00020209,3]
[378167186,1754759438569,-5492.13591232,0.00020888,2]
[378167187,1754759438629,-1517.53386467,0.00020888,2]
[378167188,1754759438639,-1321.46613533,0.00020888,2]
[378167189,1754759438660,-16643.44337276,0.00020888,2]
[378167350,1754759440725,-2586.56555715,0.00020888,2]
[378167352,1754759440737,-2459.9999997,0.00020888,2]
[378167354,1754759440748,-342.108,0.00020888,2]
[378167357,1754759440762,-6246.58355233,0.00020888,2]
[378167359,1754759440773,-604.0,0.00020888,2]
[378167361,1754759440784,-159911.79268273,0.00020888,2]
[378167363,1754759440794,-5000.0,0.00020888,2]
[378167365,1754759440803,-455.39292064,0.00020888,2]
[378167367,1754759440812,-175.48677985,0.0002089,2]
[378167369,1754759440821,-150.0,0.00020892,2]
[378167371,1754759440831,-150.0,0.00020892,2]
[378167373,1754759440840,-150.0,0.00020892,2]
[378167375,1754759440849,-150.0,0.00020892,2]
[378167377,1754759440858,-500.0,0.00020892,2]
[378167379,1754759440868,-500.0,0.00020892,2]
[378167381,1754759440877,-200.0,0.00020892,2]
[378167383,1754759440887,-269.0,0.00020892,2]
[378167385,1754759440896,-150.0,0.00020892,2]
[378167387,1754759440906,-150.0,0.00020892,2]
[378167389,1754759440916,-5800.0,0.000209,2]
[378167391,1754759440925,-10000.0,0.000209,2]
[378167393,1754759440934,-842.58837004,0.000209,2]
[378167395,1754759440944,-150.0,0.00020904,2]
[378167397,1754759440953,-319.50249725,0.00020927,5]
[378167401,1754759440978,-194.49750275,0.00020927,5]
[378167403,1754759440988,-150.0,0.0002095,2]
[378167405,1754759440997,-150.0,0.00020967,2]
[378167407,1754759441007,-314.30451096,0.00020968,2]
[378167409,1754759441017,-400.58418063,0.00020969,2]
[378167411,1754759441026,-486.86385031,0.00020971,2]
[378167413,1754759441036,-573.14351999,0.00020972,2]
[378167415,1754759441045,-212.60098215,0.00020973,2]
[378167417,1754759441055,-500.0,0.00020973,2]
[378167419,1754759441064,-5.26321012,0.00020973,2]
[378167421,1754759441076,-494.73678988,0.00020973,2]
[378167423,1754759441085,-439.39451847,0.00020973,2]
[378167426,1754759441097,-60.60548153,0.00020973,2]
[378167428,1754759441107,-500.0,0.00020973,2]
[378167430,1754759441119,-500.0,0.00020973,2]
[378167432,1754759441128,-500.0,0.00020973,2]
[378167434,1754759441138,-500.0,0.00020973,2]
[378167436,1754759441147,-500.0,0.00020973,2]
[378167438,1754759441156,-500.0,0.00020973,2]
[378167440,1754759441166,-500.0,0.00020973,2]
[378167442,1754759441175,-382.95220584,0.00020973,2]
[378167446,1754759441209,-117.04779416,0.00020973,2]
[378167448,1754759441219,-500.0,0.00020973,2]
[378167451,1754759441228,-503.39759304,0.00020973,2]
[378167453,1754759441237,-159.775808,0.00020973,2]
[378167455,1754759441247,-298.7992,0.00020973,2]
[378167456,1754759441255,-500.0,0.00020973,2]
[378167459,1754759441265,-637.50020958,0.00020973,2]
[378167460,1754759441274,-500.0,0.00020973,2]
[378167462,1754759441283,-659.42318966,0.00020973,2]
[378167465,1754759441293,-156.61083278,0.00020974,2]
[378167688,1754759443526,-649.27578012,0.0002042,2]
[378167690,1754759443536,-589.09202656,0.00020974,2]
[378167692,1754759443545,-515.2108753,0.00020976,2]
[378167695,1754759443556,-316.77165371,0.00020976,2]
[378167697,1754759443566,-918.26219869,0.00020977,2]
[378167699,1754759443576,-284.41802915,0.00020978,2]
[378167702,1754759443589,-1215.0,0.00020978,2]
[378167704,1754759443599,-132.34811845,0.00020978,2]
[378167706,1754759443611,-503.53147131,0.00020978,2]
[378167708,1754759443622,-579.12041024,0.00020978,2]
[378167710,1754759443633,-1215.0,0.00020978,2]
[378167712,1754759443642,-1215.0,0.00020978,2]
[378167714,1754759443651,-1215.0,0.00020978,2]
[378167716,1754759443662,-1215.0,0.00020978,2]
[378167718,1754759443673,-1215.0,0.00020978,2]
[378167720,1754759443682,-1215.0,0.00020978,2]
[378167722,1754759443692,-1215.0,0.00020978,2]
[378167724,1754759443702,-1215.0,0.00020978,2]
[378167727,1754759443714,-1215.0,0.00020978,2]
[378167729,1754759443723,-1215.0,0.00020978,2]
[378167730,1754759443734,-1215.0,0.00020978,2]
[378167732,1754759443744,-1203.53894954,0.00020978,2]
[378167734,1754759443753,-151.56,0.00020978,2]
[378167736,1754759443762,-200.17952679,0.00020978,2]
[378167738,1754759443772,-1004.54186835,0.00020978,2]
[378167740,1754759443782,-400.0,0.00020987,2]
[378167742,1754759443791,-400.0,0.00020987,2]
[378167744,1754759443801,-458.96770673,0.00020987,2]
[378167747,1754759443810,-2341.51,0.00020987,2]
[378167751,1754759443821,-300.0,0.00020987,2]
[378167753,1754759443830,-55522.44013551,0.00020988,2]
[378167754,1754759443839,-326.82073275,0.00020988,2]
[378167757,1754759443849,-304046.32067049,0.00020988,2]
[378167763,1754759443898,-169.67675253,0.00020871,2]
[378167766,1754759443907,-118.51955622,0.00020988,2]
[378167768,1754759443918,-5418.57027287,0.00020988,2]
[378167772,1754759443945,-6087.46797331,0.00020988,2]
[378167779,1754759444006,-1232.99974895,0.00020988,2]
[378167782,1754759444021,-95250.0,0.00020988,2]
[378167784,1754759444032,-400.0,0.00020988,2]
[378167786,1754759444043,-673.3310658,0.00020988,2]
[378167789,1754759444060,-69475.73731624,0.00020988,2]
[378167950,1754759446289,-265.59999999,0.0002092,3]
[378167951,1754759446302,-622.40000001,0.0002092,3]
[378167952,1754759446314,-110.93960001,0.00020988,2]
[378167953,1754759446396,-305.56,0.00019709,2]
[378167954,1754759446405,-2060.24,0.00020988,2]
[378167955,1754759446417,-232874.99999998,0.00020988,2]
[378167956,1754759446554,-362.34247196,0.00020988,2]
[378167972,1754759575949,156.92,0.00013699,2]
[378167997,1754759613970,-459.09744,0.00018136,2]
[378167998,1754759613998,-262.55,0.00019178,2]
[378167999,1754759614024,-3919.29,0.00019658,2]
[378168000,1754759614051,-426.92,0.000198,2]
[378168001,1754759614074,-434.45,0.00019807,2]
[378168002,1754759614098,-500.0,0.0002,2]
[378168016,1754759687055,797.69256,0.0002,3]
[378168085,1754760223192,150.0,0.00017141,2]
[378168097,1754760342892,150.0,0.00017153,2]
[378168098,1754760342923,150.0,0.00015856,2]
[378168099,1754760342999,150.0,0.00017445,2]
[378168100,1754760343053,150.0,0.00016718,2]
[378168101,1754760343128,150.0,0.00017344,2]
[378168102,1754760343213,150.0,0.00016121,2]
[378168103,1754760343245,150.0,0.00017396,2]
[378168104,1754760343273,150.0,0.0001732,2]
[378168105,1754760343310,150.0,0.00016958,2]
[378168106,1754760343339,150.0,0.00017546,2]
[378168107,1754760343491,150.0,0.00016073,2]
[378168109,1754760351089,150.0,0.00016753,2]
[378168163,1754760632447,-150.0,0.00018148,2]
[378168164,1754760632458,-315.88844996,0.00018227,2]
[378168165,1754760632555,-1499.69232599,0.00018227,2]
[378168166,1754760632567,-616.72922405,0.00018227,2]
[378168167,1754760632576,-150.0,0.000185,2]
[378168168,1754760632585,-150.0,0.00018627,2]
[378168169,1754760632594,-150.0,0.00018652,2]
[378168170,1754760632603,-150.0,0.00018708,2]
[378168171,1754760632613,-176.21615273,0.00018773,2]
[378168172,1754760632622,-947.88,0.00018849,2]
[378168173,1754760632632,-150.0,0.00018873,2]
[378168174,1754760632641,-71.89030886,0.00018878,2]
[378168175,1754760632652,-96.08969114,0.00018878,2]
[378168176,1754760632662,-150.0,0.00018884,2]
[378168177,1754760632672,-150.0,0.00018895,2]
[378168178,1754760632681,-159.27698936,0.000189,2]
[378168179,1754760632690,-151.83410316,0.000189,2]
[378168180,1754760632699,-46.78507335,0.00018901,2]
[378168181,1754760632719,-105.04902981,0.00018901,2]
[378168182,1754760632728,-1268.54,0.00018901,2]
[378168183,1754760632739,-176.21615273,0.00018902,2]
[378168184,1754760632748,-151.83410316,0.00018902,2]
[378168185,1754760632758,-176.15,0.00018927,2]
[378168186,1754760632767,-1000.0,0.00018939,2]
[378168187,1754760632777,-178.3,0.00018964,2]
[378168188,1754760632787,-1200.0,0.00018971,2]
[378168189,1754760632796,-300.0,0.00018972,2]
[378168191,1754760632805,-6.64206752,0.00018972,2]
[378168192,1754760632821,-242.35793248,0.00018972,2]
[378168193,1754760632830,-500.0,0.00018973,2]
[378168195,1754760632839,-501.2956382,0.00018973,2]
[378168197,1754760632849,-500.0,0.00018973,2]
[378168199,1754760632858,-159.14689959,0.00018973,2]
[378168201,1754760632867,-500.0,0.00018973,2]
[378168203,1754760632876,-308.07681999,0.00018973,2]
[378168205,1754760632894,-191.92318001,0.00018973,2]
[378168206,1754760632903,-500.0,0.00018973,2]
[378168207,1754760632913,-197.39628369,0.0001899,2]
[378168208,1754760632922,-219.0,0.00018997,2]
[378168209,1754760632931,-575.0,0.00018999,2]
[378168210,1754760632941,-850.0,0.00018999,2]
[378168211,1754760632951,-150.0,0.00018999,2]
[378168212,1754760632966,-180.00287135,0.00018999,2]
[378168214,1754760632984,-475.31808467,0.00018999,2]
[378168216,1754760632993,-300.0,0.00018999,2]
[378168218,1754760633003,-300.0,0.00018999,2]
[378168220,1754760633012,-55844.56293086,0.00019,2]
[378168222,1754760633024,-579.36353194,0.00019,2]
[378168223,1754760633035,-4998.53845847,0.00019,2]
[378168229,1754760638307,-8313.00772143,0.00019,2]
[378168230,1754760638316,-9967.16086046,0.00019,2]
[378168231,1754760638326,-865372.59997888,0.00019,2]
[378168232,1754760638335,-161919.54646722,0.00019,2]
[378168233,1754760638471,-13311.38747275,0.00019,2]
[378168234,1754760638677,-563.74422308,0.00019,2]
[378168236,1754760638741,-491.20089757,0.00019,2]
[378168461,1754760641108,-348.82372796,0.00019,2]
[378168466,1754760641142,-807.92564119,0.00019,2]
[378168469,1754760641161,-1641.79068516,0.00019,2]
[378168471,1754760641173,-730986.14644782,0.00019,2]
[378168477,1754760641224,-24104.6103854,0.00019,2]
[378168480,1754760641235,-1323.0,0.00019,2]
[378168487,1754760641292,-500.0,0.00019,2]
[378168493,1754760641340,-236796.44998691,0.00019,2]
[378168495,1754760641352,-13348.99677037,0.00019,2]
[378168497,1754760641362,-959.37255751,0.00019,2]
[378168700,1754760643439,-1134.19819342,0.000189,2]
[378168702,1754760643451,-4322.70157161,0.000189,2]
[378168704,1754760643462,-2982.4290057,0.000189,2]
[378168705,1754760643471,-1235.9709943,0.00019,2]
[378168706,1754760643487,-2371.20249053,0.00019,2]
[378168707,1754760643546,-928.62744249,0.00019,2]
[378168708,1754760643600,-290.33096439,0.00019,2]
[378168709,1754760643612,-107240.03791419,0.00019,2]
[378168710,1754760643622,-600.0,0.00019002,2]
[378168712,1754760643631,-600.0,0.00019002,2]
[378168713,1754760643640,-539.93,0.00019002,2]
[378168715,1754760643650,-150.0,0.0001902,2]
[378168717,1754760643660,-266.41943076,0.00019049,2]
[378168719,1754760643669,-150.0,0.00019133,2]
[378168721,1754760643679,-277.35,0.00019178,2]
[378168723,1754760643688,-305.27,0.00019206,2]
[378168725,1754760643697,-300.91,0.00019234,2]
[378168727,1754760643706,-300.24,0.00019234,2]
[378168729,1754760643716,-250.0,0.00019234,2]
[378168731,1754760643725,-304.36,0.00019234,2]
[378168733,1754760643734,-305.42,0.00019235,2]
[378168735,1754760643744,-301.44,0.00019235,2]
[378168737,1754760643753,-304.75,0.00019237,2]
[378168739,1754760643762,-304.34,0.00019237,2]
[378168741,1754760643771,-3510.84,0.00019245,2]
[378168743,1754760643781,-273.49,0.00019249,2]
[378168745,1754760643790,-266.41943072,0.00019313,2]
[378168747,1754760643800,-403.3,0.00019318,2]
[378168749,1754760643809,-150.68,0.00019318,2]
[378168751,1754760643819,-302.79,0.00019318,2]
[378168753,1754760643828,-300.04,0.00019318,2]
[378168754,1754760643837,-305.28,0.00019318,2]
[378168756,1754760643847,-300.48,0.0001932,2]
[378168758,1754760643862,-301.94,0.0001932,2]
[378168760,1754760643873,-200.0,0.00019321,2]
[378168762,1754760643882,-472.2264232,0.00019321,2]
[378168764,1754760643891,-600.0,0.00019321,2]
[378168766,1754760643900,-600.0,0.00019321,2]
[378168768,1754760643909,-600.0,0.00019321,2]
[378168770,1754760643919,-600.0,0.00019321,2]
[378168772,1754760643928,-600.0,0.00019321,2]
[378168774,1754760643938,-600.0,0.00019321,2]
[378168776,1754760643948,-600.0,0.00019321,2]
[378168778,1754760643958,-600.0,0.00019321,2]
[378168780,1754760643967,-600.0,0.00019321,2]
[378168782,1754760643977,-600.0,0.00019321,2]
[378168784,1754760643987,-151.0,0.00019321,2]
[378168786,1754760643996,-151.0,0.00019321,2]
[378168788,1754760644011,-549.72793957,0.00019321,2]
[378168790,1754760644020,-151.0,0.00019321,2]
[378168792,1754760644031,-151.0,0.00019321,2]
[378168794,1754760644040,-151.0,0.00019321,2]
[378168796,1754760644051,-151.0,0.00019321,2]
[378168798,1754760644060,-151.0,0.00019321,2]
[378168800,1754760644070,-500.0,0.00019321,2]
[378168802,1754760644080,-151.0,0.00019321,2]
[378168804,1754760644090,-151.0,0.00019321,2]
[378168806,1754760644099,-151.0,0.00019321,2]
[378168808,1754760644109,-151.0,0.00019321,2]
[378168810,1754760644119,-151.0,0.00019321,2]
[378168812,1754760644128,-500.0,0.00019321,2]
[378168814,1754760644138,-500.0,0.00019321,2]
[378168816,1754760644147,-500.0,0.00019321,2]
[378168818,1754760644157,-471.60256514,0.00019321,2]
[378168820,1754760644166,-500.0,0.00019321,2]
[378168822,1754760644175,-500.0,0.00019321,2]
[378168824,1754760644184,-500.0,0.00019321,2]
[378168826,1754760644193,-500.0,0.00019321,2]
[378168828,1754760644202,-500.0,0.00019321,2]
[378168830,1754760644212,-151.0,0.00019321,2]
[378168832,1754760644221,-500.0,0.00019321,2]
[378168834,1754760644231,-500.0,0.00019321,2]
[378168836,1754760644240,-546.69287297,0.00019321,2]
[378168838,1754760644249,-30190.55979632,0.00019333,2]
[378168840,1754760644258,-200.0,0.00019342,2]
[378168843,1754760644268,-500.0,0.00019342,2]
[378168845,1754760644277,-150.0,0.00019354,2]
[378168848,1754760644286,-500.0,0.00019376,2]
[378168850,1754760644295,-170.0,0.00019378,7]
[378168852,1754760644308,-151.75,0.00019392,2]
[378168854,1754760644317,-159.27698933,0.000194,2]
[378168856,1754760644326,-305.5,0.00019409,2]
[378168858,1754760644335,-304.65,0.00019409,2]
[378168860,1754760644345,-303.58,0.0001942,2]